bitfinex-derivatives/quotes_ETHF0:USTF0_20220108
["timestamp","ask_amount","ask_price","bid_price","bid_amount"]
[1641637772196,2.00479,3232.1,3231.9,1.71366169]
[1641637774002,3.04446229,3232.8,3232.0,3.20120372]
[1641637774203,3.04446229,3232.8,3232.1,0.905575]
[1641637774500,3.04446229,3232.8,3232.1,14.195575]
[1641637774701,3.04446229,3232.8,3232.1,0.905575]
[1641637775302,3.04446229,3232.8,3232.2,0.15469319]
[1641637775503,2.00479,3232.8,3232.3,0.264788]
[1641637775702,2.00479,3232.8,3232.4,0.79063646]
[1641637776502,2.00479,3232.8,3232.5,0.15469319]
[1641637776901,2.00479,3232.8,3232.6,0.264788]
[1641637781606,2.00479,3232.8,3232.4,0.79063646]
[1641637781808,2.00479,3232.8,3232.4,1.05542446]
[1641637782006,2.00479,3232.8,3232.6,5.0]
[1641637784013,2.00479,3232.8,3232.7,0.264788]
[1641637788920,2.00479,3232.8,3232.6,5.6697]
[1641637789523,2.00479,3232.8,3232.6,5.0]
[1641637793325,2.00479,3232.8,3232.6,5.264788]
[1641637794326,2.00479,3232.8,3232.6,5.0]
[1641637795926,2.00479,3232.8,3232.6,5.264788]
[1641637796126,3.5652127,3233.1,3232.7,1.54612078]
[1641637796328,3.5652127,3233.1,3232.8,0.905575]
[1641637797128,3.5652127,3233.1,3232.9,1.28128908]
[1641637797327,3.5652127,3233.1,3233.0,0.264788]
[1641637798928,3.5652127,3233.1,3232.9,1.28128908]
[1641637799329,22.84199,3233.4,3232.9,1.28128908]
[1641637799530,2.00479,3233.4,3232.9,1.28128908]
[1641637800230,2.00479,3233.4,3233.0,0.264788]
[1641637800631,2.00479,3233.4,3232.9,1.28128908]
[1641637804336,2.4278796,3233.2,3232.6,5.0]
[1641637804537,3.3110796,3233.2,3232.6,5.640787]
[1641637805539,1.8110796,3233.2,3232.6,5.0]
[1641637806037,0.9278796,3233.2,3232.6,5.264788]
[1641637806239,2.00479,3232.9,3232.6,5.264788]
[1641637806642,2.00479,3232.9,3232.7,0.640787]
[1641637812646,2.00479,3232.9,3232.7,0.905575]
[1641637814249,2.00479,3232.9,3232.7,0.640787]
[1641637818856,2.00479,3232.9,3232.8,0.264788]
[1641637819056,2.00479,3232.9,3232.8,0.952188]
[1641637821861,2.00479,3232.9,3232.8,0.6874]
[1641637824267,2.00479,3232.9,3232.7,7.45179619]
[1641637826470,2.00479,3232.9,3232.7,7.18700819]
[1641637827468,2.00479,3232.9,3232.7,7.9730065]
[1641637828567,2.00479,3232.9,3232.7,7.18700819]
[1641637829568,2.78150553,3232.9,3232.8,0.94476637]
[1641637830666,2.78150553,3232.9,3232.8,0.15876806]
[1641637831771,2.00479,3232.9,3232.8,0.15876806]
[1641637831971,2.4983715,3232.9,3232.8,0.15876806]
[1641637842680,2.4983715,3232.9,3232.8,0.42355606]
[1641637842880,2.4983715,3232.9,3232.8,1.19835606]
[1641637843183,2.00479,3232.9,3232.8,1.19835606]
[1641637843381,2.78469952,3232.9,3232.8,0.93356806]
[1641637844282,2.00479,3232.9,3232.8,0.93356806]
[1641637844484,2.49835789,3232.9,3232.8,0.15876806]
[1641637845484,2.78495839,3232.9,3232.8,0.15876806]
[1641637846284,2.00479,3232.9,3232.8,0.15876806]
[1641637846486,2.49835689,3232.9,3232.8,0.15876806]
[1641637853292,2.78428819,3232.9,3232.8,0.15876806]
[1641637867106,0.77949819,3232.9,3232.8,0.15876806]
[1641637867508,2.78428819,3232.9,3232.8,0.15876806]
[1641637868716,0.77949819,3232.9,3232.8,0.15876806]
[1641637868913,1.03967229,3233.2,3232.8,1.70473109]
[1641637869114,1e-08,3233.2,3233.0,1.5]
[1641637869313,0.65809656,3233.5,3233.2,0.00199999]
[1641637869515,21.43485375,3233.6,3233.2,0.00199999]
[1641637869516,1.55535375,3233.6,3233.4,2.00479]
[1641637869715,1.55535375,3233.6,3233.5,1.15398012]
[1641637869914,1.55535375,3233.8,3233.5,1.15398012]
[1641637870514,3.51089204,3233.7,3233.5,1.15398012]
[1641637872314,3.50889205,3233.8,3233.5,1.15398012]
[1641637872513,0.493478,3233.9,3233.5,1.15398012]
[1641637872714,6.18443166,3234.0,3233.5,1.15398012]
[1641637872715,0.493478,3233.6,3233.5,1.15398012]
[1641637874017,0.493478,3233.9,3233.5,1.15398012]
[1641637874617,0.493478,3233.9,3233.4,2.00479]
[1641637875218,0.493478,3233.9,3233.4,2.269578]
[1641637876421,0.493478,3233.9,3233.4,2.00479]
[1641637879624,3.85129207,3233.9,3233.4,2.00479]
[1641637881226,0.493478,3233.8,3233.4,2.00479]
[1641637884850,0.493478,3233.8,3233.5,0.264788]
[1641637885331,1.53340147,3233.8,3233.5,0.264788]
[1641637886635,0.493478,3233.8,3233.5,0.264788]
[1641637888540,0.493478,3233.8,3233.4,2.00479]
[1641637889144,0.493478,3233.8,3233.5,5.0]
[1641637889338,0.493478,3233.8,3233.6,0.264788]
[1641637889539,0.7800737,3233.7,3233.6,0.264788]
[1641637890844,5.17781124,3233.9,3233.6,0.264788]
[1641637891245,4.13788777,3233.9,3233.6,0.264788]
[1641637891743,0.7800737,3233.9,3233.6,0.264788]
[1641637891940,0.7800737,3233.9,3233.8,1.54570734]
[1641637892142,0.7800737,3233.9,3233.8,2.61329534]
[1641637892542,0.7800737,3234.1,3233.8,3.40121815]
[1641637893843,2.7848637,3234.2,3233.8,3.40121815]
[1641637894043,2.7848637,3234.2,3233.8,3.13643015]
[1641637894444,1.03992347,3234.4,3233.9,14.79]
[1641637894645,1.03992347,3234.4,3234.2,13.29]
[1641637895046,1.03992347,3234.4,3234.1,1.81020869]
[1641637895846,1.03992347,3234.5,3234.3,2.00479]
[1641637896445,1.03992347,3234.5,3234.3,2.269578]
[1641637896853,1.03992347,3235.0,3234.3,2.269578]
[1641637898247,1.03992347,3235.0,3234.4,13.29]
[1641637898447,1.03992347,3235.0,3234.5,0.264788]
[1641637899249,1.53324981,3235.2,3234.5,0.992088]
[1641637900048,1.03992347,3235.2,3234.5,0.992088]
[1641637900253,1.03992347,3235.2,3234.5,14.282088]
[1641637900449,2.00479,3235.3,3234.5,14.282088]
[1641637903254,2.00479,3235.3,3234.5,0.992088]
[1641637903554,33.7993845,3235.1,3234.3,2.00479]
[1641637906466,2.00479,3235.3,3234.3,2.00479]
[1641637908560,2.00479,3235.3,3234.3,2.63269]
[1641637910164,2.00479,3235.3,3234.9,1.5451413]
[1641637910566,2.00479,3235.3,3235.0,0.640787]
[1641637910767,2.00479,3235.3,3235.0,1.497187]
[1641637912165,2.00479,3235.3,3235.0,0.8564]
[1641637912966,2.00479,3235.3,3234.9,1.5451413]
[1641637916475,1.5,3235.1,3234.5,5.0]
[1641637917180,0.92742656,3234.8,3234.5,5.0]
[1641637922783,1.83552656,3234.8,3234.5,5.0]
[1641637924784,0.92744405,3234.7,3234.5,5.0]
[1641637927186,0.92742656,3234.8,3234.5,3.56430338]
[1641637942608,0.92742656,3234.8,3234.5,4.49600338]
[1641637943011,0.92742656,3234.8,3234.6,0.264788]
[1641637944510,0.92742656,3234.8,3234.5,4.49600338]
[1641637946916,0.78163647,3235.0,3234.5,4.49600338]
[1641637947315,0.78163647,3234.9,3234.6,0.264788]
[1641637948816,0.78163647,3235.0,3234.7,0.98312453]
[1641637949218,0.78163647,3235.0,3234.8,0.264788]
[1641637950923,0.78163647,3235.0,3234.9,0.98312453]
[1641637951821,0.78163647,3235.0,3234.9,0.19845811]
[1641637952121,0.78163647,3235.1,3234.9,1.74347766]
[1641637952520,0.78163647,3235.1,3235.0,0.264788]
[1641637953021,0.78163647,3235.2,3235.0,0.46324611]
[1641637954624,0.78163647,3235.2,3235.1,0.98548589]
[1641637956828,0.33011598,3235.0,3234.8,3.22421007]
[1641637957330,2.00479,3235.3,3234.8,3.22421007]
[1641637958031,1.05064106,3235.2,3234.8,3.22421007]
[1641637958731,1.05064106,3235.2,3234.8,2.00479]
[1641637959131,2.00479,3235.3,3234.8,2.00479]
[1641637961334,1.05069494,3235.2,3234.8,2.269578]
[1641637962533,3.50717637,3234.9,3234.8,2.269578]
[1641637964843,3.50717637,3234.9,3234.8,5.83388138]
[1641637965645,0.34888987,3234.8,3234.6,1.54532516]
[1641637966045,3.50717637,3234.9,3234.6,1.54532516]
[1641637966246,0.264788,3235.1,3234.6,1.54532516]
[1641637966848,1.31548294,3235.1,3234.6,1.54532516]
[1641637967848,0.264788,3235.1,3234.6,1.54532516]
[1641637971352,3.00894947,3234.9,3234.6,1.54532516]
[1641637971551,0.264788,3234.8,3234.6,1.54532516]
[1641637977757,0.264788,3234.8,3234.7,0.19238794]
[1641637977958,3.00894947,3234.9,3234.7,0.19238794]
[1641637978157,3.00894947,3234.9,3234.7,0.45717594]
[1641637978358,3.00894947,3234.9,3234.7,2.46196594]
[1641637979262,3.00894947,3234.9,3234.8,0.19238794]
[1641637983765,3.79692271,3234.9,3234.8,0.19238794]
[1641637985467,0.78797324,3234.9,3234.8,0.19238794]
[1641637985668,0.78797324,3234.9,3234.8,1.10638794]
[1641637986371,0.78797324,3235.1,3234.8,1.10638794]
[1641637987870,0.78797324,3235.1,3234.9,0.19238794]
[1641637989372,0.78797324,3235.2,3234.9,0.19238794]
[1641637991677,0.78797324,3235.2,3234.9,0.45717594]
[1641637992578,0.78797324,3235.2,3235.0,0.19238794]
[1641637994076,0.264788,3235.1,3235.0,0.19238794]
[1641637994677,3.9393915,3235.1,3235.0,0.19238794]
[1641637994878,5.4393915,3235.1,3234.7,1.31309068]
[1641637995079,1.59429119,3234.7,3234.5,1.57570881]
[1641637995279,1.5,3234.8,3234.5,1.31023973]
[1641637995478,0.264788,3234.6,3234.5,1.31023973]
[1641637995980,4.63558334,3235.1,3234.5,1.31023973]
[1641637996180,0.264788,3235.0,3234.5,1.31023973]
[1641637996581,2.00479,3234.6,3234.3,1.57570881]
[1641637996980,2.00479,3234.6,3233.7,4.13547901]
[1641637997179,2.00479,3234.6,3233.9,0.264788]
[1641637997582,2.00479,3234.6,3233.9,0.905575]
[1641637997981,2.00479,3234.6,3234.0,0.92273945]
[1641637998183,0.78805994,3234.5,3234.0,0.92273945]
[1641637998382,1.05284794,3234.5,3234.0,0.92273945]
[1641637999083,0.78805994,3234.5,3234.1,0.264788]
[1641637999282,0.78805994,3234.5,3234.1,1.060688]
[1641638000186,1.05284794,3234.5,3234.1,0.7959]
[1641638000787,1.05284794,3234.5,3234.0,0.92273945]
[1641638002189,0.78805994,3234.4,3234.0,0.92273945]
[1641638003790,0.264788,3234.5,3234.0,0.92273945]
[1641638003791,1.05284794,3234.5,3234.0,0.92273945]
[1641638003994,2.22419068,3234.4,3234.0,0.92273945]
[1641638004995,2.22419068,3234.4,3234.0,1.18752745]
[1641638006696,2.22419068,3234.4,3234.1,2.00479]
[1641638010101,2.48897868,3234.4,3234.1,2.00479]
[1641638010605,2.48897868,3234.4,3234.3,0.78767302]
[1641638011000,2.22419068,3234.4,3234.3,0.78767302]
[1641638012602,2.22419068,3234.4,3234.1,2.00479]
[1641638012802,0.264788,3234.3,3234.1,2.00479]
[1641638017209,2.81669068,3234.4,3234.1,2.00479]
[1641638017809,2.81669068,3234.4,3234.2,0.264788]
[1641638018010,2.22419068,3234.4,3234.2,1.014888]
[1641638018413,2.22419068,3234.4,3234.2,1.19811922]
[1641638020213,2.22419068,3234.4,3234.2,1.014888]
[1641638020714,2.22419068,3234.4,3234.2,0.7501]
[1641638020915,2.48897868,3234.4,3234.2,0.7501]
[1641638021813,2.48897868,3234.4,3233.7,3.31675077]
[1641638022213,2.48897868,3234.4,3233.8,0.264788]
[1641638023314,2.48897868,3234.4,3233.9,0.17783835]
[1641638025717,2.48897868,3234.4,3234.0,0.264788]
[1641638025917,2.22419068,3234.4,3234.0,0.264788]
[1641638026919,2.22419068,3234.4,3234.1,0.17783835]
[1641638027819,2.22419068,3234.4,3234.0,0.264788]
[1641638028722,2.22419068,3234.4,3234.1,0.17778909]
[1641638031323,0.264788,3234.5,3234.1,0.17778909]
[1641638033123,0.264788,3234.5,3234.1,0.96365651]
[1641638034227,1.05209406,3234.5,3234.1,0.78586742]
[1641638038129,1.92729406,3234.5,3234.1,0.78586742]
[1641638045651,0.78730606,3234.4,3234.1,0.78586742]
[1641638047450,1.05209406,3234.4,3234.1,0.78586742]
[1641638048653,1.85039406,3234.4,3234.2,0.78586742]
[1641638051956,1.063088,3234.4,3234.3,0.78586742]
[1641638053357,1.55643623,3234.4,3234.3,0.78586742]
[1641638053958,1.55643623,3234.4,3233.9,0.17778909]
[1641638054159,2.60713117,3234.4,3234.0,1.57674877]
[1641638054358,2.34234317,3234.4,3234.0,1.57674877]
[1641638055359,0.49334823,3234.3,3234.1,0.17778909]
[1641638056864,1.05069494,3234.4,3234.2,0.264788]
[1641638058266,1.05069494,3234.4,3234.3,0.17778909]
[1641638060369,1.54404317,3234.4,3234.2,0.264788]
[1641638061070,1.05069494,3234.4,3234.3,0.17778909]
[1641638063673,0.49334823,3234.5,3234.3,0.17778909]
[1641638064976,0.49334823,3234.5,3234.4,0.78643826]
[1641638065778,4.0034234,3234.5,3234.4,0.78643826]
[1641638066077,4.0034234,3234.5,3233.9,1.31196077]
[1641638066277,0.264788,3234.4,3233.9,1.31196077]
[1641638066477,3.77486317,3234.4,3233.9,1.31196077]
[1641638066676,3.77486317,3234.4,3233.9,1.57674877]
[1641638067077,4.2682114,3234.4,3233.9,0.264788]
[1641638067277,2.00479,3234.0,3233.8,1.48974986]
[1641638067878,1.764788,3233.9,3233.8,1.48974986]
[1641638068077,1.764788,3233.9,3233.8,0.56074986]
[1641638068277,19.05888165,3233.9,3233.6,3.0596418]
[1641638068476,19.05888165,3233.9,3233.4,1.57570881]
[1641638068477,5.5,3233.7,3233.4,1.57570881]
[1641638068677,1.5,3233.5,3233.4,1.57570881]
[1641638068880,1.764788,3233.5,3233.4,1.57570881]
[1641638069278,3.769578,3233.5,3233.4,1.57570881]
[1641638070478,4.82181141,3233.5,3232.9,0.584953]
[1641638070678,4.82181141,3233.5,3232.9,0.849741]
[1641638071180,2.00479,3233.0,3232.9,0.849741]
[1641638072678,2.00479,3233.0,3232.9,0.584953]
[1641638072881,2.00479,3233.0,3232.5,3.12202325]
[1641638073079,2.00479,3233.0,3232.5,3.38681125]
[1641638074979,0.264788,3232.9,3232.5,3.38681125]
[1641638075579,0.264788,3232.9,3232.5,1.81110244]
[1641638076981,0.264788,3232.9,3232.5,1.54631444]
[1641638077382,0.264788,3232.9,3232.6,1.31015681]
[1641638077885,0.264788,3232.9,3232.5,2.85647125]
[1641638079685,4.62432916,3233.0,3232.6,0.264788]
[1641638082288,4.0,3232.8,3232.6,0.177788]
[1641638082487,4.6825,3232.8,3232.6,0.177788]
[1641638082687,4.6825,3232.8,3232.3,1.31015681]
[1641638083090,8.9521923,3232.8,3232.3,1.31015681]
[1641638083387,8.9521923,3232.8,3232.2,1.48794481]
[1641638083591,0.264788,3232.7,3232.2,1.48794481]
[1641638084488,4.9521923,3232.8,3232.2,1.48794481]
[1641638085493,4.9521923,3232.8,3232.2,0.177788]
[1641638087193,8.9521923,3232.8,3232.6,0.78521794]
[1641638087398,18.2421923,3232.8,3232.6,0.78521794]
[1641638087594,4.9521923,3232.8,3232.6,0.78521794]
[1641638087794,4.9521923,3232.8,3232.6,0.96300594]
[1641638088996,4.9521923,3232.8,3232.6,0.177788]
[1641638089996,4.2696923,3232.8,3232.6,0.177788]
[1641638090396,3.7421298,3232.8,3232.6,0.177788]
[1641638090598,3.7421298,3232.8,3232.5,0.78521794]
[1641638091798,3.7421298,3232.8,3232.6,0.177788]
[1641638094102,2.00479,3233.0,3232.6,0.177788]
[1641638094608,2.00479,3233.0,3232.6,0.96300594]
[1641638095607,2.00479,3233.0,3232.9,0.78521794]
[1641638097108,2.269578,3233.0,3232.9,0.78521794]
[1641638098010,2.269578,3233.0,3232.7,0.78521794]
[1641638098212,3.189278,3233.0,3232.7,0.78521794]
[1641638098813,4.30282765,3233.0,3232.7,0.78521794]
[1641638101812,4.03803965,3233.0,3232.7,0.96300594]
[1641638103112,4.03803965,3233.0,3232.7,0.78521794]
[1641638103313,4.30282765,3233.0,3232.8,0.78521794]
[1641638104412,4.30282765,3233.0,3232.7,0.78521794]
[1641638105112,5.80282765,3233.0,3232.7,0.78521794]
[1641638105312,1.5,3232.8,3232.7,0.78521794]
[1641638105513,3.769578,3232.8,3232.4,0.24386262]
[1641638105715,4.0,3232.6,3232.5,0.24386262]
[1641638105914,17.29,3232.6,3232.5,0.24386262]
[1641638106413,17.554788,3232.6,3232.5,0.24386262]
[1641638107314,17.554788,3232.6,3232.2,1.31015681]
[1641638107315,17.554788,3232.6,3232.0,1.81957143]
[1641638107516,17.554788,3232.6,3232.0,0.24386262]
[1641638107517,2.00479,3232.2,3232.0,0.24386262]
[1641638108819,1.45717316,3232.2,3232.0,0.24386262]
[1641638111621,1.45717316,3232.2,3232.0,1.48794481]
[1641638111821,0.73567316,3232.2,3232.0,1.48794481]
[1641638112622,1.49497316,3232.2,3232.1,0.24386262]
[1641638116029,1.49497316,3232.2,3232.0,0.24386262]
[1641638116428,1.49497316,3232.2,3232.1,0.177788]
[1641638117930,1.49497316,3232.2,3232.1,0.42165062]
[1641638122434,1.49497316,3232.2,3232.1,1.73180743]
[1641638123436,1.49497316,3232.2,3232.1,0.42165062]
[1641638124437,8.78243369,3232.3,3232.1,0.42165062]
[1641638124837,2.60393789,3232.3,3232.1,0.42165062]
[1641638125638,4.60872789,3232.3,3232.1,0.42165062]
[1641638126140,4.60872789,3232.3,3232.2,0.24386262]
[1641638128847,4.60872789,3232.3,3232.2,1.81957143]
[1641638130145,4.60872789,3232.3,3232.2,0.24386262]
[1641638134252,4.60872789,3232.3,3232.1,0.177788]
[1641638134752,4.60872789,3232.3,3231.4,18.12249323]
[1641638134952,4.60872789,3232.3,3231.4,17.50969323]
[1641638136656,4.0,3232.2,3231.4,17.50969323]
[1641638136857,4.0,3232.2,3232.1,1.31406203]
[1641638137059,4.0,3232.2,3232.0,1.57687444]
[1641638138357,4.0,3232.2,3231.8,0.177788]
[1641638138557,33.07525567,3232.0,3231.8,0.177788]
[1641638138757,33.07525567,3232.0,3231.9,2.38024699]
[1641638139558,30.96889047,3232.0,3231.9,2.38024699]
[1641638142266,4.86825998,3231.8,3231.7,2.62865587]
[1641638142764,30.96889047,3232.0,3231.7,3.26944287]
[1641638143664,30.96889047,3232.0,3231.7,2.62865587]
[1641638147975,7.42625494,3231.8,3231.7,2.62865587]
[1641638149576,7.42625494,3231.8,3231.4,17.50969323]
[1641638149777,7.42625494,3231.8,3231.4,1.10659323]
[1641638150979,7.42625494,3231.8,3231.6,2.62837732]
[1641638155289,30.96889047,3232.0,3231.6,2.62837732]
[1641638155483,2.00479,3232.3,3231.6,4.12837732]
[1641638155684,2.00479,3232.3,3231.6,5.67511031]
[1641638156284,2.00479,3232.3,3231.8,2.62837732]
[1641638156482,2.00479,3232.3,3231.9,0.98432595]
[1641638157487,2.00479,3232.3,3232.2,1.97185688]
[1641638159686,2.00479,3232.3,3232.0,2.62837732]
[1641638159885,2.00479,3232.3,3232.1,2.62837732]
[1641638163787,2.00479,3232.3,3232.0,0.49356968]
[1641638163788,2.00479,3232.3,3232.0,3.121947]
[1641638164789,2.00479,3232.3,3232.1,2.62837732]
[1641638166893,2.00479,3232.3,3232.1,3.121947]
[1641638167594,2.00479,3232.3,3232.1,2.62837732]
[1641638168396,0.78802809,3233.0,3232.2,3.04634552]
[1641638168594,0.78802809,3233.0,3232.2,4.17472284]
[1641638168994,0.78802809,3233.0,3232.3,1.5]
[1641638169196,0.78802809,3233.0,3232.4,1.5]
[1641638169397,0.78802809,3233.0,3232.5,0.640787]
[1641638169598,0.78802809,3233.0,3232.5,1.218187]
[1641638169798,4.83577669,3233.1,3232.7,1.97182745]
[1641638169998,5.10056469,3233.1,3232.7,1.97182745]
[1641638170198,5.10056469,3233.1,3232.7,3.97661745]
[1641638171401,5.10056469,3233.1,3232.8,0.49356968]
[1641638171601,5.10056469,3233.1,3232.9,1.57746354]
[1641638172201,4.83577669,3233.1,3232.9,1.57746354]
[1641638173602,4.83577669,3233.1,3232.9,2.07103322]
[1641638174905,4.83577669,3233.1,3233.0,1.57746354]
[1641638175106,2.73022821,3233.1,3233.0,1.57746354]
[1641638175506,0.264788,3233.2,3233.0,1.57746354]
[1641638176508,0.264788,3233.2,3232.9,2.07103322]
[1641638177614,2.00479,3233.3,3232.9,2.07103322]
[1641638178412,2.269578,3233.3,3232.9,2.07103322]
[1641638179013,2.269578,3233.3,3233.1,1.31323326]
[1641638179615,1.25422809,3233.9,3233.2,3.68665682]
[1641638179816,0.78802809,3233.9,3233.8,1.5]
[1641638180014,0.78802809,3233.9,3233.8,3.04563328]
[1641638180416,0.78802809,3233.9,3233.8,7.05521328]
[1641638180620,0.78802809,3233.9,3233.8,8.36579589]
[1641638180816,1.05070411,3234.1,3233.8,8.36579589]
[1641638181019,1.05070411,3234.1,3234.0,1.5]
[1641638181215,1.05070411,3234.1,3234.0,2.2083]
[1641638181615,1.05070411,3234.1,3234.0,2.849087]
[1641638181816,22.95963731,3235.0,3234.0,2.849087]
[1641638182015,7.23313731,3235.0,3234.3,1.5]
[1641638182217,7.49792531,3235.0,3234.0,2.849087]
[1641638182416,7.49792531,3235.0,3234.9,2.00479]
[1641638182617,7.49792531,3235.0,3234.9,2.62439]
[1641638183518,6.1824332,3235.0,3234.9,2.62439]
[1641638184518,6.4472212,3235.0,3234.9,2.62439]
[1641638186928,11.3932012,3235.0,3234.9,2.00479]
[1641638187126,6.1832915,3234.6,3234.5,2.00479]
[1641638187523,11.3946715,3234.6,3234.5,2.00479]
[1641638189723,2.12507248,3234.3,3234.2,2.00479]
[1641638189926,11.1298835,3234.6,3234.2,2.00479]
[1641638190126,6.4480795,3234.6,3234.2,2.00479]
[1641638190527,4.946821,3234.5,3234.2,2.00479]
[1641638191428,0.264788,3234.4,3234.2,2.00479]
[1641638194130,4.95523469,3234.7,3234.2,2.00479]
[1641638194433,0.264788,3234.6,3234.2,2.00479]
[1641638194933,5.211533,3234.6,3234.2,2.00479]
[1641638195433,3.67761606,3234.3,3234.2,2.00479]
[1641638196131,3.67761606,3234.3,3234.2,2.645577]
[1641638196735,3.67761606,3234.3,3234.2,3.13891053]
[1641638196931,1.57272634,3234.3,3234.2,3.13891053]
[1641638197131,4.95523469,3234.7,3234.2,3.13891053]
[1641638198937,4.95523469,3234.7,3234.2,2.645577]
[1641638199837,4.95523469,3234.7,3234.2,3.424577]
[1641638201442,4.95523469,3234.7,3234.2,4.20859284]
[1641638202339,2.00479,3235.3,3234.2,4.20859284]
[1641638202539,4.609315,3234.8,3234.2,4.20859284]
[1641638206751,4.609315,3234.8,3234.3,1.27734054]
[1641638207449,4.609315,3234.8,3234.2,4.20859284]
[1641638209753,4.609315,3234.8,3234.3,0.78401584]
[1641638209952,4.609315,3234.8,3234.3,1.27734389]
[1641638210655,0.264788,3234.7,3234.3,1.27734389]
[1641638211856,4.874103,3234.8,3234.3,1.27734389]
[1641638212658,4.874103,3234.8,3234.3,0.78401584]
[1641638212858,4.874103,3234.8,3234.2,3.42959284]
[1641638213256,4.609315,3234.8,3234.2,3.42959284]
[1641638213957,4.609315,3234.8,3234.3,1.27733966]
[1641638214559,7.53841422,3235.3,3234.3,1.27733966]
[1641638214958,7.53841422,3235.3,3234.4,1.5]
[1641638216658,7.53841422,3235.3,3234.5,1.27733966]
[1641638216858,7.53841422,3235.3,3234.6,1.43275275]
[1641638217261,0.264788,3235.2,3234.6,1.43275275]
[1641638217865,0.264788,3235.2,3234.6,2.21676859]
[1641638218265,0.264788,3235.2,3234.6,0.78401584]
[1641638218566,4.946057,3235.1,3234.6,0.78401584]
[1641638218967,4.946057,3235.1,3234.5,0.78401584]
[1641638219168,0.9274163,3234.8,3234.5,0.78401584]
[1641638220068,0.9274163,3234.8,3234.4,0.78401584]
[1641638220270,1.1922043,3234.8,3234.4,0.78401584]
[1641638222273,1.1922043,3234.8,3234.5,0.78401584]
[1641638222472,1.1922043,3234.8,3234.5,1.50671584]
[1641638223073,0.9274163,3234.8,3234.5,1.50671584]
[1641638223272,0.9274163,3234.8,3234.6,1.27733821]
[1641638226077,4.17679997,3235.3,3234.6,1.27733821]
[1641638226476,0.78476692,3235.7,3235.2,3.0432075]
[1641638226678,5.374,3236.2,3235.2,3.0432075]
[1641638226679,0.4612,3236.2,3235.7,13.29]
[1641638226880,0.21325617,3236.5,3236.2,13.29]
[1641638227079,1.89217021,3236.7,3236.4,14.79]
[1641638227281,1.69976028,3237.0,3236.7,13.29]
[1641638227479,1.69976028,3237.0,3236.9,14.79]
[1641638227682,1.69976028,3237.0,3236.9,15.4026]
[1641638227978,1.59956028,3237.0,3236.9,15.47982]
[1641638228183,3.28345036,3237.2,3236.9,15.47982]
[1641638228381,3.28345036,3237.2,3237.1,14.79]
[1641638228581,1.08695036,3237.2,3237.1,14.79]
[1641638228781,0.78564952,3237.8,3237.1,14.79]
[1641638228782,3.41079539,3237.4,3237.1,14.79]
[1641638228982,0.78564952,3237.8,3237.3,14.79]
[1641638229183,0.78564952,3237.8,3237.7,1.5]
[1641638229382,0.78564952,3237.8,3237.7,16.33162634]
[1641638229584,0.78564952,3237.8,3237.7,18.55078155]
[1641638230185,0.18529858,3238.0,3237.7,18.55078155]
[1641638230384,0.18529858,3238.0,3237.7,5.26078155]
[1641638230584,0.18529858,3238.0,3237.7,4.58508155]
[1641638230986,0.18529858,3238.0,3237.9,4.00958]
[1641638232289,3.0963571,3239.9,3237.9,4.00958]
[1641638232488,5.374,3240.4,3239.8,1.5]
[1641638232686,2.17189902,3240.8,3240.3,1.5]
[1641638232886,1.5,3241.6,3240.7,4.00958]
[1641638233188,7.94014043,3242.7,3240.8,0.07713]
[1641638233390,1.5,3242.1,3240.9,0.93248289]
[1641638233587,1.5,3242.6,3240.9,0.93248289]
[1641638233788,1.5,3242.1,3240.9,0.93248289]
[1641638234189,2.00479,3242.8,3240.9,0.93248289]
[1641638234190,1.5,3241.0,3240.9,0.93248289]
[1641638234489,0.264788,3241.0,3240.7,4.00958]
[1641638234688,1.5,3242.1,3240.7,4.00958]
[1641638234891,1.5,3241.4,3240.7,2.00479]
[1641638235088,0.264788,3241.3,3240.7,2.00479]
[1641638235288,1.5,3241.6,3240.7,2.00479]
[1641638235690,1.5,3241.6,3240.8,0.49332237]
[1641638235890,0.264788,3241.5,3240.8,0.49332237]
[1641638236090,0.264788,3241.5,3240.9,0.640787]
[1641638236894,1.5,3242.1,3241.4,2.00479]
[1641638237092,1.5,3241.6,3241.4,2.00479]
[1641638237495,1.5,3241.5,3241.4,2.00479]
[1641638237892,1.5,3242.6,3241.4,2.00479]
[1641638238193,1.5,3242.9,3241.4,2.00479]
[1641638238393,1.5,3242.5,3241.5,1.21053804]
[1641638238593,1.5,3242.1,3241.5,1.21053804]
[1641638238796,0.264788,3242.0,3241.8,1.54188928]
[1641638238993,0.264788,3242.0,3241.9,2.00479]
[1641638239195,1.764788,3242.0,3241.9,2.00479]
[1641638239594,1.5,3242.0,3241.9,2.00479]
[1641638239996,1.5,3243.0,3241.9,2.00479]
[1641638240395,1.5,3242.3,3241.9,2.00479]
[1641638240597,1.5,3242.0,3241.9,2.00479]
[1641638240797,1.54273372,3244.3,3241.9,5.04495283]
[1641638240996,1.54273372,3244.3,3243.9,4.00958]
[1641638241198,1.5,3244.1,3243.9,4.75408]
[1641638241599,0.88081,3244.0,3243.9,4.75408]
[1641638242198,4.932249,3244.1,3243.9,4.75408]
[1641638242398,1.5,3244.7,3243.9,4.75408]
[1641638242399,5.5,3244.7,3243.9,4.75408]
[1641638242599,1.5,3244.0,3243.9,4.75408]
[1641638242798,1.764788,3244.0,3243.9,4.00958]
[1641638242998,0.264788,3244.0,3243.9,4.00958]
[1641638243200,1.764788,3244.0,3243.9,4.00958]
[1641638244703,8.96573205,3244.3,3243.9,4.00958]
[1641638245302,4.93203,3244.2,3243.9,4.00958]
[1641638245701,1.43334756,3244.2,3243.9,4.00958]
[1641638245901,8.96573205,3244.4,3243.9,4.00958]
[1641638246102,4.932106,3244.7,3243.9,4.00958]
[1641638246301,1.96247882,3244.8,3244.6,4.07460632]
[1641638246501,6.35430053,3245.7,3244.6,2.18623838]
[1641638246902,3.54675298,3245.9,3245.1,2.00479]
[1641638247102,1.44772919,3245.9,3245.3,2.53426794]
[1641638247304,1.44772919,3245.9,3245.6,1.54007032]
[1641638247501,1.44772919,3245.9,3245.1,2.00479]
[1641638247502,4.0,3245.7,3245.1,2.00479]
[1641638247803,3.72614438,3245.7,3243.0,1.5]
[1641638248001,3.72614438,3245.7,3242.9,0.75471981]
[1641638248002,4.930054,3245.6,3244.0,1.03426794]
[1641638248202,2.77391979,3245.8,3244.9,1.5]
[1641638248402,2.77391979,3245.8,3244.9,2.4283]